fUSD/lending_fUSD_20250616
["ID","MTS","AMOUNT","RATE_DAILY","PERIOD"]
[366061450,1750042244376,-1472.58,0.00016438,2]
[366061451,1750042244386,-490.0,0.00016438,2]
[366061452,1750042244395,-490.0,0.00016438,2]
[366061453,1750042244405,-502.88,0.00016438,2]
[366061454,1750042244415,-1663.93,0.00016438,2]
[366061455,1750042244425,-490.0,0.00016438,2]
[366061456,1750042244434,-723.43,0.00016438,2]
[366061457,1750042244444,-490.0,0.00016438,2]
[366061458,1750042244454,-2000.36,0.00016438,2]
[366061459,1750042244464,-979.48,0.00016438,2]
[366061460,1750042244475,-490.0,0.00016438,2]
[366061461,1750042244484,-490.0,0.00016438,2]
[366061462,1750042244494,-490.0,0.00016438,2]
[366061463,1750042244504,-490.0,0.00016438,2]
[366061464,1750042244513,-1554.48,0.00016438,2]
[366061465,1750042244523,-490.0,0.00016438,2]
[366061466,1750042244533,-490.0,0.00016438,2]
[366061467,1750042244542,-529.65,0.00016438,2]
[366061468,1750042244552,-490.0,0.00016438,2]
[366061469,1750042244562,-490.0,0.00016438,2]
[366061470,1750042244573,-604.35,0.00016438,2]
[366061471,1750042244583,-680.94,0.00016438,2]
[366061472,1750042244592,-1023.3,0.00016438,2]
[366061473,1750042244603,-516.41,0.00016438,2]
[366061474,1750042244612,-490.0,0.00016438,2]
[366061475,1750042244625,-490.0,0.00016438,2]
[366061476,1750042244639,-490.0,0.00016438,2]
[366061477,1750042244649,-1196.93,0.00016438,2]
[366061478,1750042244659,-809.25,0.00016438,2]
[366061479,1750042244671,-490.0,0.00016438,2]
[366061480,1750042244681,-490.0,0.00016438,2]
[366061481,1750042244691,-678.36,0.00016438,2]
[366061482,1750042244700,-490.0,0.00016438,2]
[366061483,1750042244711,-627.9,0.00016438,2]
[366061484,1750042244721,-1920.42,0.00016438,2]
[366061485,1750042244731,-309.99,0.00016438,2]
[366061486,1750042244742,-1101.11,0.00016438,2]
[366061487,1750042244751,-2217.26,0.00016438,2]
[366061488,1750042244762,-2755.97,0.00016438,2]
[366061489,1750042244772,-490.0,0.00016438,2]
[366061490,1750042244782,-490.0,0.00016438,2]
[366061491,1750042244791,-526.78,0.00016438,2]
[366061492,1750042244800,-490.0,0.00016438,2]
[366061493,1750042244810,-1523.74,0.00016438,2]
[366061494,1750042244820,-496.82974041,0.00016438,2]
[366061495,1750042244830,-1591.99,0.00016438,2]
[366061496,1750042244839,-641.61,0.00016438,2]
[366061497,1750042244850,-490.0,0.00016438,2]
[366061498,1750042244861,-1373.63,0.00016438,2]
[366061499,1750042244871,-490.0,0.00016438,2]
[366061500,1750042244880,-494.88662358,0.00016438,2]
[366061501,1750042244891,-497.12236318,0.00016438,2]
[366061502,1750042244901,-608.8,0.00016438,2]
[366061503,1750042244913,-491.2506183,0.00016438,2]
[366061504,1750042244924,-490.0,0.00016438,2]
[366061505,1750042244934,-597.72,0.00016438,2]
[366061506,1750042244944,-5639.81,0.00016438,2]
[366061507,1750042244955,-1888.85,0.00016438,2]
[366061508,1750042244965,-667.08,0.00016438,2]
[366061509,1750042244975,-496.00556667,0.00016438,2]
[366061510,1750042244986,-490.0,0.00016438,2]
[366061511,1750042244996,-490.0,0.00016438,2]
[366061512,1750042245006,-490.0,0.00016438,2]
[366061513,1750042245016,-493.78762477,0.00016438,2]
[366061514,1750042245026,-490.0,0.00016438,2]
[366061515,1750042245036,-490.0,0.00016438,2]
[366061516,1750042245045,-490.0,0.00016438,2]
[366061517,1750042245055,-591.88,0.00016438,2]
[366061518,1750042245064,-535.55,0.00016438,2]
[366061519,1750042245073,-490.0,0.00016438,2]
[366061520,1750042245083,-490.0,0.00016438,2]
[366061521,1750042245093,-490.0,0.00016438,2]
[366061522,1750042245103,-1959.18,0.00016438,2]
[366061523,1750042245113,-490.0,0.00016438,2]
[366061524,1750042245122,-490.0,0.00016438,2]
[366061525,1750042245132,-1180.9,0.00016438,2]
[366061526,1750042245142,-490.0,0.00016438,2]
[366061527,1750042245151,-501.83223207,0.00016438,2]
[366061528,1750042245163,-879.49,0.00016438,2]
[366061529,1750042245173,-2024.87,0.00016438,2]
[366061530,1750042245182,-2964.28,0.00016438,2]
[366061531,1750042245192,-923.58,0.00016438,2]
[366061532,1750042245203,-2760.31,0.00016438,2]
[366061533,1750042245212,-4973.07,0.00016438,2]
[366061534,1750042245222,-613.97,0.00016438,2]
[366061535,1750042245233,-742.68,0.00016438,2]
[366061536,1750042245243,-490.0,0.00016438,2]
[366061537,1750042245252,-615.77829101,0.00016438,2]
[366061538,1750042245262,-500.69116406,0.00016438,2]
[366061539,1750042245271,-1068.71,0.00016438,2]
[366061540,1750042245281,-490.0,0.00016438,2]
[366061541,1750042245290,-1314.5,0.00016438,2]
[366061542,1750042245300,-1229.36,0.00016438,2]
[366061543,1750042245310,-3235.41,0.00016438,2]
[366061544,1750042245319,-523.35584212,0.00016438,2]
[366061545,1750042245329,-495.17346269,0.00016438,2]
[366061546,1750042245339,-1699.38,0.00016438,2]
[366061547,1750042245349,-490.0,0.00016438,2]
[366061548,1750042245358,-490.0,0.00016438,2]
[366061549,1750042245369,-490.0,0.00016438,2]
[366061550,1750042245380,-1276.05,0.00016438,2]
[366061551,1750042245393,-490.0,0.00016438,2]
[366061552,1750042245403,-490.0,0.00016438,2]
[366061553,1750042245413,-9830.46,0.00016438,2]
[366061554,1750042245423,-7684.87,0.00016438,2]
[366061555,1750042245432,-490.0,0.00016438,2]
[366061556,1750042245442,-490.0,0.00016438,2]
[366061557,1750042245452,-2337.03,0.00016438,2]
[366061558,1750042245461,-4696.41,0.00016438,2]
[366061559,1750042245471,-1140.6,0.00016438,2]
[366061560,1750042245481,-5488.65,0.00016438,2]
[366061561,1750042245490,-490.0,0.00016438,2]
[366061562,1750042245499,-1262.98,0.00016438,2]
[366061563,1750042245509,-490.0,0.00016438,2]
[366061564,1750042245519,-493.98889462,0.00016438,2]
[366061565,1750042245530,-490.0,0.00016438,2]
[366061566,1750042245539,-490.0,0.00016438,2]
[366061567,1750042245549,-490.0,0.00016438,2]
[366061568,1750042245559,-490.0,0.00016438,2]
[366061569,1750042245568,-685.75,0.00016438,2]
[366061570,1750042245578,-496.89848341,0.00016438,2]
[366061571,1750042245587,-517.99,0.00016438,2]
[366061572,1750042245597,-668.85,0.00016438,2]
[366061573,1750042245606,-2051.3,0.00016438,2]
[366061574,1750042245617,-2655.46,0.00016438,2]
[366061575,1750042245627,-757.58,0.00016438,2]
[366061576,1750042245640,-688.91,0.00016438,2]
[366061577,1750042245650,-636.02,0.00016438,2]
[366061578,1750042245662,-490.0,0.00016438,2]
[366061579,1750042245674,-496.34203918,0.00016438,2]
[366061580,1750042245683,-500.0,0.00016438,2]
[366061581,1750042245694,-500.0,0.00016438,2]
[366061582,1750042245705,-500.0,0.00016438,2]
[366061583,1750042245717,-500.0,0.00016438,2]
[366061584,1750042245727,-1196.97,0.00016438,2]
[366061585,1750042245738,-633.58,0.00016438,2]
[366061586,1750042245749,-1075.96,0.00016438,2]
[366061587,1750042245759,-496.53852849,0.00016438,2]
[366061588,1750042245770,-1230.02,0.00016438,2]
[366061589,1750042245780,-2747.94,0.00016438,2]
[366061590,1750042245790,-490.0,0.00016438,2]
[366061591,1750042245800,-717.65,0.00016438,2]
[366061592,1750042245810,-490.0,0.00016438,2]
[366061593,1750042245820,-490.81,0.00016438,2]
[366061594,1750042245830,-490.0,0.00016438,2]
[366061595,1750042245840,-493.31249051,0.00016438,2]
[366061596,1750042245850,-490.0,0.00016438,2]
[366061597,1750042245860,-403.51221179,0.00016438,2]
[366061599,1750042245870,-7180.58,0.00016438,2]
[366061600,1750042245880,-2587.03,0.00016438,2]
[366061601,1750042245890,-255.82447247,0.00016438,2]
[366061602,1750042245899,-490.0,0.00016438,2]
[366061603,1750042245912,-2024.74,0.00016438,2]
[366061605,1750042245922,-628.59,0.00016438,2]
[366061607,1750042245932,-2370.49,0.00016438,2]
[366061608,1750042245941,-11304.66,0.00016438,2]
[366061609,1750042245951,-490.0,0.00016438,2]
[366061610,1750042245961,-490.0,0.00016438,2]
[366061611,1750042245971,-1235.16,0.00016438,2]
[366061612,1750042245981,-490.0,0.00016438,2]
[366061613,1750042245991,-192.78794492,0.00016438,2]
[366061614,1750042246001,-2664.13,0.00016438,2]
[366061615,1750042246011,-490.0,0.00016438,2]
[366061616,1750042246021,-8055.26,0.00016438,2]
[366061617,1750042246031,-1659.77,0.00016438,2]
[366061618,1750042246041,-4199.9,0.00016438,2]
[366061619,1750042246051,-490.0,0.00016438,2]
[366061620,1750042246061,-1561.32,0.00016438,2]
[366061621,1750042246071,-492.07689724,0.00016438,2]
[366061622,1750042246081,-499.90895304,0.00016438,2]
[366061623,1750042246091,-1418.4,0.00016438,2]
[366061624,1750042246101,-493.81312175,0.00016438,2]
[366061625,1750042246111,-490.0,0.00016438,2]
[366061626,1750042246120,-2823.51,0.00016438,2]
[366061627,1750042246129,-492.96471602,0.00016438,2]
[366061628,1750042246139,-490.0,0.00016438,2]
[366061629,1750042246148,-783.71,0.00016438,2]
[366061630,1750042246158,-490.0,0.00016438,2]
[366061631,1750042246168,-962.55,0.00016438,2]
[366061632,1750042246177,-490.0,0.00016438,2]
[366061633,1750042246187,-1718.76,0.00016438,2]
[366061634,1750042246196,-490.0,0.00016438,2]
[366061635,1750042246206,-491.24434573,0.00016438,2]
[366061636,1750042246215,-491.70799235,0.00016438,2]
[366061637,1750042246225,-2432.97,0.00016438,2]
[366061638,1750042246235,-500.0,0.00016438,2]
[366061639,1750042246244,-500.0,0.00016438,2]
[366061640,1750042246254,-500.0,0.00016438,2]
[366061641,1750042246264,-500.0,0.00016438,2]
[366061642,1750042246274,-366.23861944,0.00016438,2]
[366061643,1750042246283,-490.0,0.00016438,2]
[366061644,1750042246292,-500.0,0.00016438,2]
[366061645,1750042246302,-500.0,0.00016438,2]
[366061646,1750042246311,-500.0,0.00016438,2]
[366061647,1750042246321,-2550.02,0.00016438,2]
[366061648,1750042246331,-490.0,0.00016438,2]
[366061649,1750042246340,-490.0,0.00016438,2]
[366061650,1750042246349,-490.0,0.00016438,2]
[366061651,1750042246359,-1605.62,0.00016438,2]
[366061652,1750042246369,-1565.78,0.00016438,2]
[366061653,1750042246378,-956.54,0.00016438,2]
[366061654,1750042246388,-1164.54,0.00016438,2]
[366061655,1750042246396,-496.31897407,0.00016438,2]
[366061656,1750042246407,-4851.7,0.00016438,2]
[366061657,1750042246417,-540.49,0.00016438,2]
[366061658,1750042246427,-490.0,0.00016438,2]
[366061659,1750042246438,-495.71595598,0.00016438,2]
[366061660,1750042246447,-496.23969559,0.00016438,2]
[366061661,1750042246458,-1441.01,0.00016438,2]
[366061662,1750042246469,-1718.85,0.00016438,2]
[366061663,1750042246478,-2872.64,0.00016438,2]
[366061664,1750042246488,-490.0,0.00016438,2]
[366061665,1750042246498,-681.28,0.00016438,2]
[366061666,1750042246508,-1035.5,0.00016438,2]
[366061667,1750042246518,-712.47,0.00016438,2]
[366061668,1750042246528,-490.0,0.00016438,2]
[366061669,1750042246538,-713.89,0.00016438,2]
[366061670,1750042246548,-691.7,0.00016438,2]
[366061671,1750042246558,-936.89,0.00016438,2]
[366061672,1750042246568,-1195.42,0.00016438,2]
[366061673,1750042246578,-490.0,0.00016438,2]
[366061674,1750042246588,-503.49618835,0.00016438,2]
[366061675,1750042246597,-490.0,0.00016438,2]
[366061676,1750042246608,-2070.06,0.00016438,2]
[366061677,1750042246617,-2422.72,0.00016438,2]
[366061678,1750042246627,-493.52014018,0.00016438,2]
[366061679,1750042246639,-1389.74,0.00016438,2]
[366061680,1750042246648,-493.36528591,0.00016438,2]
[366061681,1750042246660,-2988.3,0.00016438,2]
[366061682,1750042246670,-490.0,0.00016438,2]
[366061683,1750042246680,-1538.64,0.00016438,2]
[366061684,1750042246690,-513.85,0.00016438,2]
[366061685,1750042246700,-1888.91,0.00016438,2]
[366061686,1750042246712,-490.0,0.00016438,2]
[366061687,1750042246723,-1308.03,0.00016438,2]
[366061688,1750042246734,-919.08,0.00016438,2]
[366061689,1750042246743,-676.15,0.00016438,2]
[366061690,1750042246753,-5388.58,0.00016438,2]
[366061691,1750042246763,-490.0,0.00016438,2]
[366061692,1750042246773,-4246.85,0.00016438,2]
[366061693,1750042246783,-490.0,0.00016438,2]
[366061694,1750042246793,-2665.05,0.00016438,2]
[366061695,1750042246804,-490.0,0.00016438,2]
[366061696,1750042246814,-490.0,0.00016438,2]
[366061697,1750042246824,-490.0,0.00016438,2]
[366061698,1750042246834,-2049.0,0.00016438,2]
[366061699,1750042246845,-2064.36,0.00016438,2]
[366061700,1750042246855,-495.39857586,0.00016438,2]
[366061701,1750042246865,-493.35675332,0.00016438,2]
[366061702,1750042246875,-490.0,0.00016438,2]
[366061703,1750042246885,-490.0,0.00016438,2]
[366061704,1750042246896,-793.56,0.00016438,2]
[366061705,1750042246908,-1015.91,0.00016438,2]
[366061706,1750042246918,-2156.95,0.00016438,2]
[366061707,1750042246927,-491.76079103,0.00016438,2]
[366061708,1750042246937,-2644.08,0.00016438,2]
[366061709,1750042246947,-493.49968535,0.00016438,2]
[366061710,1750042246957,-4169.57,0.00016438,2]
[366061711,1750042246967,-490.0,0.00016438,2]
[366061712,1750042246978,-490.0,0.00016438,2]
[366061713,1750042246988,-625.73,0.00016438,2]
[366061714,1750042246997,-548.63,0.00016438,2]
[366061715,1750042247007,-508.45,0.00016438,2]
[366061716,1750042247166,-1953.34,0.00016438,2]
[366061717,1750042247177,-1896.61,0.00016438,2]
[366061718,1750042247187,-501.77667013,0.00016438,2]
[366061719,1750042247199,-1148.48,0.00016438,2]
[366061720,1750042247209,-490.0,0.00016438,2]
[366061721,1750042247220,-490.0,0.00016438,2]
[366061722,1750042247230,-1972.96,0.00016438,2]
[366061723,1750042247239,-6316.08,0.00016438,2]
[366061724,1750042247250,-491.31089225,0.00016438,2]
[366061725,1750042247259,-1846.88,0.00016438,2]
[366061726,1750042247269,-497.77326576,0.00016438,2]
[366061727,1750042247279,-491.94,0.00016438,2]
[366061728,1750042247292,-490.0,0.00016438,2]
[366061729,1750042247302,-490.0,0.00016438,2]
[366061730,1750042247312,-1518.19,0.00016438,2]
[366061731,1750042247321,-1560.37,0.00016438,2]
[366061732,1750042247331,-490.0,0.00016438,2]
[366061733,1750042247341,-576.07611543,0.00016438,2]
[366061734,1750042247351,-564.05,0.00016438,2]
[366061735,1750042247361,-7959.52,0.00016438,2]
[366061736,1750042247371,-1083.69,0.00016438,2]
[366061737,1750042247384,-1283.62,0.00016438,2]
[366061738,1750042247395,-498.28703104,0.00016438,2]
[366061739,1750042247406,-490.0,0.00016438,2]
[366061740,1750042247416,-7628.37,0.00016438,2]
[366061741,1750042247425,-2418.26,0.00016438,2]
[366061742,1750042247435,-1096.28,0.00016438,2]
[366061743,1750042247445,-841.09,0.00016438,2]
[366061744,1750042247455,-383.1466226,0.00016438,2]
[366061745,1750042247465,-2093.58,0.00016438,2]
[366061746,1750042247475,-492.35178912,0.00016438,2]
[366061747,1750042247486,-1471.85,0.00016438,2]
[366061748,1750042247495,-502.78743232,0.00016438,2]
[366061749,1750042247505,-322.96015572,0.00016438,2]
[366061750,1750042247516,-490.0,0.00016438,2]
[366061751,1750042247526,-496.24964688,0.00016438,2]
[366061752,1750042247536,-490.0,0.00016438,2]
[366061753,1750042247547,-1184.66,0.00016438,2]
[366061754,1750042247558,-1423.22,0.00016438,2]
[366061755,1750042247567,-495.97213732,0.00016438,2]
[366061756,1750042247577,-2790.49,0.00016438,2]
[366061757,1750042247587,-980.45,0.00016438,2]
[366061758,1750042247598,-11333.74,0.00016438,2]
[366061759,1750042247608,-495.14018756,0.00016438,2]
[366061760,1750042247619,-1427.28,0.00016438,2]
[366061761,1750042247630,-490.0,0.00016438,2]
[366061762,1750042247643,-490.0,0.00016438,2]
[366061763,1750042247653,-495.10443526,0.00016438,2]
[366061764,1750042247664,-573.41,0.00016438,2]
[366061765,1750042247675,-1393.93,0.00016438,2]
[366061766,1750042247685,-1354.81,0.00016438,2]
[366061767,1750042247695,-490.0,0.00016438,2]
[366061768,1750042247706,-5422.52,0.00016438,2]
[366061769,1750042247716,-1496.39,0.00016438,2]
[366061770,1750042247725,-490.0,0.00016438,2]
[366061771,1750042247735,-619.46,0.00016438,2]
[366061772,1750042247745,-211.37204422,0.00016438,2]
[366061773,1750042247755,-496.45697289,0.00016438,2]
[366061774,1750042247765,-490.0,0.00016438,2]
[366061775,1750042247774,-955.17,0.00016438,2]
[366061776,1750042247784,-1325.24,0.00016438,2]
[366061777,1750042247794,-490.0,0.00016438,2]
[366061778,1750042247805,-490.0,0.00016438,2]
[366061779,1750042247815,-490.0,0.00016438,2]
[366061780,1750042247825,-8402.45,0.00016438,2]
[366061781,1750042247835,-934.48,0.00016438,2]
[366061782,1750042247844,-490.0,0.00016438,2]
[366061783,1750042247854,-8183.67,0.00016438,2]
[366061784,1750042247864,-571.12325883,0.00016438,2]
[366061785,1750042247874,-729.48,0.00016438,2]
[366061786,1750042247884,-1562.82,0.00016438,2]
[366061787,1750042247894,-490.0,0.00016438,2]
[366061788,1750042247903,-490.0,0.00016438,2]
[366061789,1750042247915,-844.64,0.00016438,2]
[366061790,1750042247924,-499.22674662,0.00016438,2]
[366061791,1750042247934,-2616.96,0.00016438,2]
[366061792,1750042247944,-3632.87,0.00016438,2]
[366061793,1750042247954,-490.0,0.00016438,2]
[366061794,1750042247964,-490.0,0.00016438,2]
[366061795,1750042247974,-490.0,0.00016438,2]
[366061796,1750042247983,-1832.85,0.00016438,2]
[366061797,1750042247994,-1020.44,0.00016438,2]
[366061798,1750042248004,-1131.0,0.00016438,2]
[366061799,1750042248014,-596.32,0.00016438,2]
[366061800,1750042248024,-872.44,0.00016438,2]
[366061801,1750042248033,-2450.82,0.00016438,2]
[366061802,1750042248043,-490.0,0.00016438,2]
[366061803,1750042248054,-496.45715751,0.00016438,2]
[366061804,1750042248063,-1013.58,0.00016438,2]
[366061805,1750042248074,-816.03,0.00016438,2]
[366061806,1750042248083,-490.0,0.00016438,2]
[366061807,1750042248093,-490.0,0.00016438,2]
[366061808,1750042248104,-776.42,0.00016438,2]
[366061809,1750042248113,-490.0,0.00016438,2]
[366061810,1750042248123,-909.13,0.00016438,2]
[366061811,1750042248133,-3225.9,0.00016438,2]
[366061812,1750042248143,-365.04704999,0.00016438,2]
[366061813,1750042248153,-1017.89,0.00016438,2]
[366061814,1750042248164,-222.42428426,0.00016438,2]
[366061815,1750042248174,-655.04,0.00016438,2]
[366061816,1750042248184,-500.0,0.00016438,2]
[366061817,1750042248194,-500.0,0.00016438,2]
[366061818,1750042248203,-500.90944536,0.00016438,2]
[366061819,1750042248213,-500.0,0.00016438,2]
[366061820,1750042248223,-1530.87,0.00016438,2]
[366061821,1750042248233,-1580.67,0.00016438,2]
[366061822,1750042248243,-19031.39,0.00016438,2]
[366061823,1750042248253,-1085.56,0.00016438,2]
[366061824,1750042248264,-276.69880954,0.00016438,2]
[366061825,1750042248273,-490.0,0.00016438,2]
[366061826,1750042248284,-490.0,0.00016438,2]
[366061827,1750042248294,-3914.46,0.00016438,2]
[366061828,1750042248304,-2932.16,0.00016438,2]
[366061829,1750042248314,-490.0,0.00016438,2]
[366061830,1750042248325,-749.4,0.00016438,2]
[366061831,1750042248334,-1818.95,0.00016438,2]
[366061832,1750042248345,-490.0,0.00016438,2]
[366061833,1750042248355,-1024.62,0.00016438,2]
[366061834,1750042248365,-4637.75,0.00016438,2]
[366061835,1750042248375,-1029.2,0.00016438,2]
[366061836,1750042248386,-490.0,0.00016438,2]
[366061837,1750042248396,-513.37,0.00016438,2]
[366061838,1750042248406,-1873.37,0.00016438,2]
[366061839,1750042248416,-490.0,0.00016438,2]
[366061840,1750042248426,-490.0,0.00016438,2]
[366061841,1750042248436,-807.03,0.00016438,2]
[366061842,1750042248446,-490.0,0.00016438,2]
[366061843,1750042248456,-4340.22,0.00016438,2]
[366061844,1750042248466,-1413.65,0.00016438,2]
[366061845,1750042248477,-735.76,0.00016438,2]
[366061846,1750042248488,-1612.29,0.00016438,2]
[366061847,1750042248498,-490.0,0.00016438,2]
[366061848,1750042248508,-1387.96,0.00016438,2]
[366061849,1750042248518,-541.77,0.00016438,2]
[366061850,1750042248528,-4193.57,0.00016438,2]
[366061851,1750042248538,-1239.74,0.00016438,2]
[366061852,1750042248548,-504.43675865,0.00016438,2]
[366061853,1750042248558,-1741.68,0.00016438,2]
[366061854,1750042248567,-490.0,0.00016438,2]
[366061855,1750042248577,-23130.27,0.00016438,2]
[366061856,1750042248587,-490.0,0.00016438,2]
[366061857,1750042248597,-505.9,0.00016438,2]
[366061858,1750042248607,-1495.24,0.00016438,2]
[366061859,1750042248618,-1390.25,0.00016438,2]
[366061860,1750042248628,-752.82,0.00016438,2]
[366061861,1750042248644,-1326.57,0.00016438,2]
[366061862,1750042248654,-752.82,0.00016438,2]
[366061863,1750042248664,-752.82,0.00016438,2]
[366061864,1750042248675,-521.63,0.00016438,2]
[366061865,1750042248685,-1552.03,0.00016438,2]
[366061866,1750042248709,-498.36594803,0.00016438,2]
[366061867,1750042248720,-862.7018516,0.00016438,2]
[366061868,1750042249969,-308.7081484,0.00016438,2]
[366061869,1750042249979,-496.45986293,0.00016438,2]
[366061870,1750042249989,-178.37198867,0.00016438,2]
[366061871,1750042251354,-317.304437,0.00016438,2]
[366061872,1750042251363,-809.61365255,0.00016438,2]
[366061873,1750042251375,-1152.97210044,0.00016438,2]
[366061876,1750042515409,300.0,0.000158,5]
[366061877,1750042517507,700.0,0.000159,5]
[366061878,1750042544552,183.39,0.00015426,2]
[366061879,1750042668092,1000.0,0.00015375,2]
[366061881,1750042690439,198.18,0.00013699,2]
[366061882,1750042756169,250.0,0.00015375,2]
[366061883,1750042801195,662.07,0.00015375,2]
[366061884,1750042865139,2928.15,0.00024658,120]
[366061885,1750043052496,204.0,0.00014925,2]
[366061886,1750043165978,10000.0,0.00024657,120]
[366061890,1750043245158,300.0,0.000158,5]
[366061891,1750043247246,600.0,0.000159,5]
[366061897,1750043326563,8319.99398162,0.0002,30]
[366061898,1750043369300,150.0,0.00015302,2]
[366061899,1750043379877,10000.0,0.00016,5]
[366061900,1750043384982,150.0,0.00015358,7]
[366061901,1750043432455,-150.0,0.00015774,2]
[366061902,1750043432465,-300.0,0.00015832,2]
[366061903,1750043432474,-250.0,0.00015832,2]
[366061904,1750043432484,-67.2,0.00015889,2]
[366061905,1750043432496,-232.8,0.00015889,2]
[366061906,1750043432506,-199.58019586,0.00015889,2]
[366061909,1750043438173,-1000.0029746,0.00015889,2]
[366061910,1750043438227,-0.41682954,0.00015889,2]
[366061911,1750043438238,-500.0,0.0001589,2]
[366061912,1750043438249,-500.0,0.0001589,2]
[366061913,1750043438260,-965.46739751,0.0001589,2]
[366061914,1750043438389,-546.20512082,0.0001589,2]
[366061927,1750043438712,-594.32748167,0.0001589,2]
[366061930,1750043438723,-164.72,0.000159,2]
[366061932,1750043438733,-1500.0,0.00016,2]
[366061934,1750043438743,-1000.0,0.000161,5]
[366061936,1750043438753,-1300.0,0.000162,5]
[366061938,1750043438764,-150.0,0.00016236,2]
[366061940,1750043438774,-1957.856,0.00016258,2]
[366061942,1750043438786,-207.4,0.00016258,2]
[366061944,1750043438797,-1634.78810206,0.00016266,2]
[366061946,1750043438807,-49.35725871,0.00016267,2]
[366061948,1750043438820,-500.64274129,0.00016267,2]
[366061950,1750043438830,-300.27,0.00016267,2]
[366061952,1750043438840,-36.66405313,0.00016267,2]
[366061954,1750043438852,-268.58594687,0.00016267,2]
[366061956,1750043438862,-302.54,0.00016267,2]
[366061958,1750043438872,-300.86,0.00016267,2]
[366061960,1750043438882,-302.66,0.00016267,2]
[366061963,1750043438893,-305.01,0.00016268,2]
[366061964,1750043438903,-302.91,0.00016268,2]
[366061965,1750043438912,-304.87,0.00016268,2]
[366061967,1750043438923,-296.0640531,0.00016268,2]
[366061970,1750043438940,-9.4859469,0.00016268,2]
[366061972,1750043438951,-300.95,0.00016268,2]
[366061974,1750043438960,-305.43,0.00016268,2]
[366061976,1750043438970,-305.11,0.00016268,2]
[366061978,1750043438980,-304.38,0.00016268,2]
[366061980,1750043438990,-303.62,0.00016268,2]
[366061982,1750043439000,-300.49,0.00016268,2]
[366061984,1750043439011,-305.7,0.00016268,2]
[366061986,1750043439021,-1133.493258,0.00016268,2]
[366061988,1750043439031,-176.0,0.000163,2]
[366061990,1750043439040,-176.0,0.000163,2]
[366061992,1750043439052,-176.0,0.000163,2]
[366061994,1750043439062,-176.0,0.000163,3]
[366061996,1750043439072,-176.0,0.000163,3]
[366061998,1750043439082,-72.86668003,0.000163,3]
[366062056,1750043440330,-108.12331997,0.000163,3]
[366062058,1750043440341,-149.92168004,0.000163,2]
[366062060,1750043440541,-959.32831996,0.000163,2]
[366062061,1750043440552,-1600.0,0.000163,5]
[366062062,1750043440562,-2030.296672,0.00016313,2]
[366062063,1750043440572,-150.0,0.00016317,2]
[366062064,1750043440583,-151.0,0.00016328,2]
[366062065,1750043440593,-500.0,0.00016328,2]
[366062066,1750043440603,-500.0,0.00016328,2]
[366062067,1750043440613,-500.0,0.00016328,2]
[366062068,1750043440624,-500.0,0.00016328,2]
[366062069,1750043440634,-571.66460153,0.00016328,2]
[366062070,1750043440644,-500.0,0.00016328,2]
[366062071,1750043440654,-151.0,0.00016328,2]
[366062072,1750043440664,-500.0,0.00016328,2]